Workbook

Sheet 1
A1: Школа | B1: МБОУ "СОШ №9 г.Азнакаево" | E1: Отд./корп | H1: День | I1: 2024-06-24
A3: Прием пищи | B3: Раздел | C3: № рец. | D3: Блюдо | E3: Выход, г | F3: Калорийность | G3: Белки | H3: Жиры | I3: Углеводы
A4: Завтрак | D4: Бутерброд с маслом | E4: 30/10 | F4: 144.60 | G4: 2.33 | H4: 8.12 | I4: 15.55
D5: Каша "Дружба" молочная с маслом сливочным | E5: 180/4 | F5: 188.20 | G5: 4.43 | H5: 2.54 | I5: 28.07
D6: Какао с молоком | E6: 200 | F6: 78.60 | G6: 4.08 | H6: 3.81 | I6: 7.60
D7: Фрукты свежие (Яблоки) | E7: 120 | F7: 56.40 | G7: 0.48 | H7: 0.48 | I7: 11.76
D8: Батон высший сорт | E8: 30 | F8: 78.60 | G8: 2.25 | H8: 0.87 | I8: 15.42
D9: Итого: | E9: 574 | F9: =SUM(F4:F8) -> 546.40 | G9: =SUM(G4:G8) -> 13.57 | H9: =SUM(H4:H8) -> 15.82 | I9: 78.40
A10: Завтрак 2 | D10: Вафли | E10: 20 | F10: 108.50 | G10: 0.75 | H10: 6.10 | I10: 12.50
D11: Кефир | E11: 180 | F11: 90.00 | G11: 5.22 | H11: 4.50 | I11: 7.20
D12: Итого: | E12: 200 | F12: =SUM(F10:F11) -> 198.50 | G12: =SUM(G10:G11) -> 5.97 | H12: =SUM(H10:H11) -> 10.60 | I12: 19.70
D13: Итого за завтрак: | E13: =E9+E12 -> 774 | F13: =F9+F12 -> 744.90 | G13: =G9+G12 -> 19.54 | H13: =H9+H12 -> 26.42 | I13: =I9+I12 -> 98.10
A14: Обед | D14: Помидоры свежие порционно | E14: 60 | F14: 14.40 | G14: 0.66 | H14: 0.12 | I14: 2.28
D15: Суп картофельный с горохом на мясном бульоне, с гренками | E15: 200/10 | F15: 155.42 | G15: 5.64 | H15: 4.37 | I15: 20.84
D16: Плов из отварной говядины | E16: 50/150 | F16: 405.92 | G16: 17.73 | H16: 24.39 | I16: 38.91
D17: Компот из изюма и яблок | E17: 200 | F17: 130.20 | G17: 0.35 | H17: 0.08 | I17: 31.85
D18: Хлеб ржаной | E18: 50 | F18: 99.00 | G18: 3.30 | H18: 0.60 | I18: 19.80
D19: Хлеб пшеничный | E19: 40 | F19: 94.00 | G19: 3.04 | H19: 0.32 | I19: 19.68
D20: Итого: | E20: 760 | F20: =SUM(F14:F19) -> 898.94 | G20: =SUM(G14:G19) -> 30.71 | H20: =SUM(H14:H19) -> 29.88 | I20: =SUM(I14:I19) -> 133.35
D21: Вода питьевая ПЭТ | E21: 500 | F21: 0.00 | G21: 0.00 | H21: 0.00 | I21: 0.00
D22: ВСЕГО: | E22: =E9+E12+E20+E21 -> 2034 | F22: =F9+F12+F20+F21 -> 1643.84 | G22: =G9+G12+G20+G21 -> 50.25 | H22: =H9+H12+H20+H21 -> 56.30 | I22: =I9+I12+I20+I21 -> 231.44
